Workbook

Sheet Wohngeldberechnung
A1: W O H N G E L D R E C H N E R 2 0 2 3
A2: (nicht rechtsverbindlich)
A4: Name:
A6: Mietstufe d. Wohnortes: | F6: Mietstufen nach Ländern
A8: Mietstufe: | C8: =IFERROR(VLOOKUP(B6,Mietstufen!A3:B56,2,FALSE()),"") -> 
A10: Anzahl der Haush. Mitglieder:
A12: Berück. Miete/Belastung: | C12: =IFERROR(IF(C28=0,"",C28),"") -> 
A14: monatl. Gesamteinkommen: | C14: =IF(C54=0,"",C54) -> 
A16: Wohngeld: | C16: =IFERROR(Hilfsrechnungen!H21,"") -> 
A19: B e r e c h n u n g z u b e r ü c k s i c h t i g e n d e M i e t e / B e l a s t u n g
A20: !!! Heizkosten bleiben außer Betracht!!!
A22: tatsächliche Miete / Belastung | E22: Heizkostenentl. | F22: =Hilfsrechnungen!I18 -> 
E23: Klimakomponente | F23: =Hilfsrechnungen!I19 -> 
A25: Höchstmiete / Belastung | C25: =IFERROR(INDEX(Hilfsrechnungen!A30:M37,MATCH(C8,Hilfsrechnungen!A30:A37,0),MATCH(C10,Hilfsrechnungen!A30:M30,0)),"") -> 
A28: Zu berücksichtigende Miete | C28: =IF(C22>C25+F23,C25+F22+F23,IF(C22=0,"",C22+F22)) -> 
A32: M o n a t l i c h e s G e s a m t e i n k o m m e n
A33: !!! Kindergeld und Pflegegeld bleibt beim Wohngeld außer Betracht !!!
A35: Höhe des Bruttoeinkommens
A36: Wessen Einkommen?
A37: Einkommesart
A39: Einkommensbereinigung
A40: abzgl. Werbungskosten(-pauschale)
A41: Zwischenergebnis | C41: =IF(C35-C40=0,"",C35-C40) ->  | D41: =IF(D35-D40=0,"",D35-D40) ->  | E41: =IF(E35-E40=0,"",E35-E40) ->  | F41: =IF(F35-F40=0,"",F35-F40) ->  | G41: =IF(G35-G40=0,"",G35-G40) -> 
A42: pauschaler Abzug in %
A43: pauschaler Abzug als Betrag | C43: =IFERROR(C41*C42,"") ->  | D43: =IFERROR(D41*D42,"") ->  | E43: =IFERROR(E41*E42,"") ->  | F43: =IFERROR(F41*F42,"") ->  | G43: =IFERROR(G41*G42,"") -> 
A44: Zwischenergebnis | C44: =IFERROR(C41-C43,"") ->  | D44: =IFERROR(D41-D43,"") ->  | E44: =IFERROR(E41-E43,"") ->  | F44: =IFERROR(F41-F43,"") ->  | G44: =IFERROR(G41-G43,"") -> 
A46: Summe der bereinigten Einkommen | C46: =IF(SUM(C44:G44)=0,"",SUM(C44:G44)) -> 
A48: Weitere Freibeträge
A49: Schwerbehinderung 100% oder <100% und pflegebed.?
A50: "Kind" bis 25 Jahre alt und eigenes Einkommen
A51: Alleinerziehenden-Freibetrag (mind. 1 Kind minderj.)
A52: weitere Absetzmöglichkeiten (u.a. Unterhaltsz.)
A54: Monatl. Gesamteinkommen | C54: =IFERROR(C46-SUM(C49:C52),"") -> 
A57: © Diakonische Bezirksstelle Neuenstadt, Carsten Richter Version 2023.1
A58: Weitere Infos zum Wohngeld
A59: www.bmi.bund.de/Wohngeld

Sheet Mietstufen
A1: Gemeinde/-Teilort | B1: Mietstufe
A3: Mietstufe 1 | B3: 1
A4: Mietstufe 2 | B4: 2
A5: Mietstufe 3 | B5: 3
A6: Mietstufe 4 | B6: 4
A7: Mietstufe 5 | B7: 5
A8: Mietstufe 6 | B8: 6
A9: Mietstufe 7 | B9: 7
A10: Abstatt | B10: 3
A11: Bad Friedrichshall | B11: 4
A12: Bad Rappenau | B12: 3
A13: Bad Wimpfen | B13: 3
A14: Beilstein | B14: 3
A15: Brackenheim | B15: 3
A16: Cleebronn | B16: 3
A17: Eberstadt | B17: 3
A18: Ellhofen | B18: 3
A19: Eppingen | B19: 3
A20: Erlenbach | B20: 3
A21: Flein | B21: 3
A22: Gemmingen | B22: 3
A23: Güglingen | B23: 3
A24: Gundelsheim | B24: 3
A25: Hardhausen am Kocher | B25: 3
A26: Heilbronn | B26: 4
A27: Ilsfeld | B27: 3
A28: Ittlingen | B28: 3
A29: Jagsthausen | B29: 3
A30: Kirchardt | B30: 3
A31: Langenbrettach | B31: 3
A32: Lauffen am Neckar | B32: 3
A33: Lehrensteinsfeld | B33: 3
A34: Leingarten | B34: 4
A35: Löwenstein | B35: 3
A36: Massenbachhausen | B36: 3
A37: Möckmühl | B37: 3
A38: Neckarsulm | B38: 4
A39: Neckarwestheim | B39: 3
A40: Neudenau | B40: 3
A41: Neuenstadt am Kocher | B41: 2
A42: Nordheim | B42: 3
A43: Obersulm | B43: 3
A44: Oedheim | B44: 3
A45: Offenau | B45: 3
A46: Pfaffenhofen | B46: 3
A47: Roigheim | B47: 3
A48: Schwaigern | B48: 3
A49: Siegelsbach | B49: 3
A50: Talheim | B50: 3
A51: Untereisesheim | B51: 3
A52: Untergruppenbach | B52: 3
A53: Weinsberg | B53: 4
A54: Widdern | B54: 3
A55: Wüstenrot | B55: 3
A56: Zaberfeld | B56: 3

Sheet Hilfsrechnungen
A1: Berechnungsformeln für a,b,c sowie für Mmin und Ymin
B2: 1 | C2: 2 | D2: 3 | E2: 4 | F2: 5 | G2: 6 | H2: 7 | I2: 8 | J2: 9 | K2: 10 | L2: 11 | M2: 12
A3: a | B3: =4/$C$13 -> 0.04 | C3: =3/$C$13 -> 0.03 | D3: =2/$C$13 -> 0.02 | E3: =1/$C$13 -> 0.01 | F3: =0 -> 0 | G3: =-1/$C$13 -> -0.01 | H3: =-2/$C$13 -> -0.02 | I3: =-3/$C$13 -> -0.03 | J3: =-4/$C$13 -> -0.04 | K3: =-6/$C$13 -> -0.06 | L3: =-9/$C$13 -> -0.09 | M3: =-1.2/C12 -> -0.12
A4: b | B4: 4.99E-04 | C4: 3.72E-04 | D4: 3.04E-04 | E4: 2.25E-04 | F4: 1.99E-04 | G4: 1.79E-04 | H4: 1.66E-04 | I4: 1.65E-04 | J4: 1.43E-04 | K4: 1.30E-04 | L4: 1.19E-04 | M4: 1.15E-04
A5: c | B5: 4.62E-05 | C5: 3.45E-05 | D5: 2.78E-05 | E5: 2.00E-05 | F5: 1.95E-05 | G5: 1.88E-05 | H5: 1.87E-05 | I5: 1.87E-05 | J5: 1.88E-05 | K5: 1.88E-05 | L5: 2.22E-05 | M5: 2.51E-05
A6: Mmin | B6: 52 | C6: 64 | D6: 76 | E6: 88 | F6: 99 | G6: 99 | H6: 111 | I6: 123 | J6: 135 | K6: 146 | L6: 180 | M6: 286
A7: Ymin | B7: 350 | C7: 600 | D7: 800 | E7: 1000 | F7: 1200 | G7: 1 400 | H7: 1600 | I7: 1800 | J7: 2000 | K7: 2200 | L7: 2400 | M7: 2600
A8: Höchstbeträge HK | B8: 110.40 € | C8: 142.60 € | D8: 170.20 € | E8: 197.80 € | F8: 225.60 € | G8: =F8+27.6 -> 253.20 € | H8: 280.80 € | I8: 308.40 € | J8: 336.00 € | K8: 363.60 € | L8: 391.20 € | M8: 418.80 €
A9: Klimakomponente | B9: 19.20 € | C9: 24.80 € | D9: 29.60 € | E9: 34.40 € | F9: 39.20 € | G9: =F9+4.8 -> 44.00 € | H9: 48.80 € | I9: 53.60 € | J9: 58.40 € | K9: 63.20 € | L9: 68.00 € | M9: 72.80 €
H10: HH-Mitglieder | I10: =Wohngeldberechnung!C10 -> 0
H11: Miete | I11: M | J11: =IF(Wohngeldberechnung!C28<HLOOKUP(I10,B2:M6,5),HLOOKUP(I10,B2:M6,5),Wohngeldberechnung!C28) -> 
B12: e1 | C12: 10
B13: e2 | C13: 100 | H13: Gesamtek | I13: Y | J13: =IF(Wohngeldberechnung!C54<HLOOKUP(I10,B2:M7,6),HLOOKUP(I10,B2:M7,6),Wohngeldberechnung!C54) -> 
B14: e4 | C14: 10000
B15: e5 | C15: 100000 | H15: a | I15: =HLOOKUP(I10,B2:M3,2) -> 
H16: b | I16: =HLOOKUP(I10,B2:M4,3) -> 
H17: c | I17: =HLOOKUP(I10,B2:M5,4) -> 
H18: d | I18: =HLOOKUP(I10,B2:M8,7) -> 
H19: e | I19: =HLOOKUP(I10,B2:M9,8) -> 
G20: WoG unrund | H20: =1.15*(J11-(I15+I16*J11+I17*J13)*J13) -> 
G21: Wohngeld rund | H21: =ROUND(H20,0) -> 
G24: z1 | H24: =I15+I16*J11+I17*J13 -> 
G25: z2 | H25: =H24*J13 -> 
G26: z3 | H26: =J11-H25 -> 
G27: z4 | H27: =1.18*H26 -> 
A29: Höchstbeträge für Miete/Belastung
B30: 1 | C30: 2 | D30: 3 | E30: 4 | F30: 5 | G30: 6 | H30: 7 | I30: 8 | J30: 9 | K30: 10 | L30: 11 | M30: 12
A31: 1 | B31: 347 € | C31: 420 € | D31: 501 € | E31: 584 € | F31: 667 € | G31: =F31+79 -> 746 € | H31: 825 € | I31: 904 € | J31: 983 € | K31: 1,062 € | L31: 1,141 € | M31: 1,220 €
A32: 2 | B32: 392 € | C32: 474 € | D32: 564 € | E32: 659 € | F32: 752 € | G32: =F32+90 -> 842 € | H32: 932 € | I32: 1,022 € | J32: 1,112 € | K32: 1,202 € | L32: 1,292 € | M32: 1,382 €
A33: 3 | B33: 438 € | C33: 530 € | D33: 631 € | E33: 736 € | F33: 841 € | G33: =F33+102 -> 943 € | H33: 1,045 € | I33: 1,147 € | J33: 1,249 € | K33: 1,351 € | L33: 1,453 € | M33: 1,555 €
A34: 4 | B34: 491 € | C34: 595 € | D34: 708 € | E34: 825 € | F34: 944 € | G34: =F34+114 -> 1,058 € | H34: 1,172 € | I34: 1,286 € | J34: 1,400 € | K34: 1,514 € | L34: 1,628 € | M34: 1,742 €
A35: 5 | B35: 540 € | C35: 654 € | D35: 778 € | E35: 909 € | F35: 1,038 € | G35: =F35+124 -> 1,162 € | H35: 1,286 € | I35: 1,410 € | J35: 1,534 € | K35: 1,658 € | L35: 1,782 € | M35: 1,906 €
A36: 6 | B36: 591 € | C36: 716 € | D36: 853 € | E36: 995 € | F36: 1,137 € | G36: =F36+143 -> 1,280 € | H36: 1,423 € | I36: 1,566 € | J36: 1,709 € | K36: 1,852 € | L36: 1,995 € | M36: 2,138 €
A37: 7 | B37: 651 € | C37: 788 € | D37: 937 € | E37: 1,095 € | F37: 1,251 € | G37: =F37+157 -> 1,408 € | H37: 1,565 € | I37: 1,722 € | J37: 1,879 € | K37: 2,036 € | L37: 2,193 € | M37: 2,350 €
A40: 1 | L40: 100
A41: 2 | D41: 150 | F41: 10 % | H41: 50 | L41: 200
A42: 3 | D42: 300 | F42: 20 % | H42: 100 | J42: 8.5 | L42: 300
A43: 4 | D43: 450 | F43: 30 % | H43: 150 | J43: 83.33 | L43: 400
A44: 5 | D44: 600 | H44: 200
A45: 6
A46: 7
A47: 8
A48: 9 | E48: 0
A49: 10 | E49: =1320/12 -> 110
A50: 11
A51: 12
